bitfinex-derivatives/quotes_BTCF0:USTF0_20260131
["timestamp","ask_amount","ask_price","bid_price","bid_amount"]
[1769893129898,0.29423145,78144.0,78126.0,0.012816]
[1769893130285,0.29423145,78144.0,78112.0,0.09236]
[1769893130286,0.29423145,78144.0,78122.0,0.012817]
[1769893130686,0.24923145,78144.0,78112.0,0.09236]
[1769893130883,0.012815,78139.0,78112.0,0.09236]
[1769893131086,0.09236,78138.0,78112.0,0.09236]
[1769893131288,0.09236,78138.0,78097.0,0.43028]
[1769893131289,0.012816,78129.0,78097.0,0.43028]
[1769893131493,0.012816,78129.0,78098.0,0.012821]
[1769893131693,0.012816,78129.0,78090.0,0.26741484]
[1769893131694,0.012818,78119.0,78093.0,0.012822]
[1769893131892,0.09236,78118.0,78083.0,0.09236]
[1769893132291,0.01282,78104.0,78080.0,0.26741484]
[1769893132492,0.012821,78102.0,78073.0,0.012825]
[1769893132688,0.29423145,78095.0,78068.0,0.012826]
[1769893132900,0.29423145,78093.0,78063.0,0.012827]
[1769893133093,0.012823,78086.0,78060.0,0.26741484]
[1769893133399,0.09236,78094.0,78060.0,0.26741484]
[1769893133400,0.29423145,78081.0,78060.0,0.26741484]
[1769893133597,0.29423145,78080.0,78060.0,0.26741484]
[1769893133894,0.63203145,78079.0,78060.0,0.26741484]
[1769893134087,0.7601208,78079.0,78060.0,0.26741484]
[1769893134290,0.00011621,78078.0,78060.0,0.26741484]
[1769893134597,0.29423145,78076.0,78060.0,0.26741484]
[1769893135296,0.12809181,78075.0,78060.0,0.26741484]
[1769893135496,0.12809181,78075.0,78060.0,0.28024184]
[1769893135992,0.12809181,78075.0,78060.0,0.26741484]
[1769893136196,0.00011621,78078.0,78073.0,0.012825]
[1769893136393,0.29423145,78101.0,78080.0,0.26741484]
[1769893136601,0.3378,78102.0,78091.0,0.012822]
[1769893136992,0.09236,78103.0,78094.0,0.012822]
[1769893137193,0.09236,78111.0,78084.0,0.29022424]
[1769893137393,4.557e-05,78102.0,78084.0,0.29022424]
[1769893137596,4.557e-05,78102.0,78085.0,0.012823]
[1769893137794,4.557e-05,78102.0,78084.0,0.29022424]
[1769893138098,0.30704945,78119.0,78084.0,0.29022424]
[1769893138397,0.12805245,78118.0,78099.0,0.012821]
[1769893139397,0.012817,78123.0,78081.0,0.09236]
[1769893139398,0.09232,78121.0,78106.0,0.01282]
[1769893139698,0.09232,78121.0,78101.0,0.012821]
[1769893140399,0.09232,78121.0,78105.0,0.01282]
[1769893141994,0.29423145,78119.0,78100.0,0.26741484]
[1769893142198,0.29423145,78119.0,78077.0,0.29022424]
[1769893142199,0.29423145,78112.0,78090.0,0.012822]
[1769893142402,0.29423145,78112.0,78081.0,0.09236]
[1769893142707,0.12801966,78111.0,78090.0,0.012822]
[1769893143002,0.29423145,78110.0,78090.0,0.012822]
[1769893143303,0.33776,78109.0,78090.0,0.012822]
[1769893143500,0.29423145,78108.0,78081.0,0.09236]
[1769893143698,0.29423145,78097.0,78081.0,0.09236]
[1769893143999,0.012822,78095.0,78072.0,0.012825]
[1769893144190,0.012822,78093.0,78072.0,0.012825]
[1769893144596,0.12804999,78092.0,78072.0,0.012825]
[1769893144999,0.12804999,78092.0,78074.0,0.012825]
[1769893145200,0.06404999,78092.0,78074.0,0.012825]
[1769893145600,0.29423145,78087.0,78064.0,0.09232]
[1769893145901,0.012823,78085.0,78064.0,0.09232]
[1769893146203,0.012824,78084.0,78065.0,0.012827]
[1769893146401,0.012824,78081.0,78064.0,0.09232]
[1769893146602,0.42230029,78086.0,78064.0,0.09232]
[1769893146603,0.012824,78079.0,78064.0,0.09232]
[1769893146799,0.012825,78077.0,78050.0,0.35973484]
[1769893146999,0.012825,78077.0,78049.0,0.29022424]
[1769893147000,0.012827,78066.0,78045.0,0.01283]
[1769893147194,0.012828,78059.0,78034.0,0.09232]
[1769893147398,0.012827,78065.0,78034.0,0.38838037]
[1769893147605,0.012827,78065.0,78035.0,0.29606037]
[1769893148008,0.33772,78066.0,78050.0,0.26741484]
[1769893148303,0.33772,78075.0,78050.0,0.26741484]
[1769893148504,0.012825,78074.0,78056.0,0.012828]
[1769893148705,0.012825,78074.0,78053.0,0.012829]
[1769893149309,0.33772,78075.0,78053.0,0.012829]
[1769893149599,0.012826,78071.0,78050.0,0.26741484]
[1769893150405,0.012826,78071.0,78050.0,0.28024384]
[1769893150800,0.012825,78075.0,78050.0,0.28024384]
[1769893151001,0.27203685,78083.0,78060.0,0.012827]
[1769893151200,0.012824,78082.0,78060.0,0.012827]
[1769893151406,0.14092976,78082.0,78060.0,0.012827]
[1769893151604,0.012824,78082.0,78060.0,0.28024184]
[1769893152012,0.12808853,78081.0,78063.0,0.012827]
[1769893152302,0.012824,78080.0,78060.0,0.26741484]
[1769893152503,0.27203685,78073.0,78055.0,0.012828]
[1769893152708,0.012826,78072.0,78051.0,0.012829]
[1769893153204,0.012826,78069.0,78050.0,0.09232]
[1769893153407,0.12810002,78071.0,78050.0,0.09232]
[1769893153707,0.012825,78078.0,78060.0,0.26741484]
[1769893155103,0.012825,78078.0,78061.0,0.012827]
[1769893155306,0.012825,78078.0,78060.0,0.26741484]
[1769893155506,0.012824,78081.0,78060.0,0.26741484]
[1769893155909,0.12809181,78081.0,78064.0,0.012827]
[1769893156108,0.012824,78084.0,78064.0,0.012827]
[1769893156702,0.012824,78082.0,78061.0,0.012827]
[1769893156910,0.012825,78077.0,78060.0,0.26741484]
[1769893157112,0.012825,78075.0,78060.0,0.26741484]
[1769893157811,0.33776,78085.0,78060.0,0.26741484]
[1769893158008,0.012824,78081.0,78060.0,0.26741484]
[1769893158203,0.012824,78081.0,78062.0,0.012827]
[1769893158405,0.012824,78081.0,78064.0,0.012827]
[1769893158812,0.33776,78085.0,78061.0,0.012827]
[1769893159012,0.012824,78079.0,78061.0,0.012827]
[1769893159710,0.012824,78079.0,78063.0,0.012827]
[1769893160017,0.012824,78082.0,78063.0,0.012827]
[1769893160314,0.33776,78085.0,78069.0,0.012826]
[1769893160521,0.12809017,78081.0,78060.0,0.26741484]
[1769893160909,0.27203685,78082.0,78060.0,0.26741484]
[1769893161209,0.012825,78077.0,78060.0,0.26741484]
[1769893162711,0.012825,78077.0,78061.0,0.012827]
[1769893162912,0.012824,78080.0,78063.0,0.012827]
[1769893163111,0.012824,78081.0,78065.0,0.012827]
[1769893163311,0.12809263,78080.0,78062.0,0.012827]
[1769893163618,0.012824,78080.0,78064.0,0.012827]
[1769893163817,0.33776,78085.0,78060.0,0.26741484]
[1769893164117,0.12808853,78084.0,78063.0,0.012827]
[1769893164310,0.12808853,78084.0,78064.0,0.29606037]
[1769893164505,0.012824,78083.0,78064.0,0.29606037]
[1769893164711,0.012824,78081.0,78060.0,0.56347521]
[1769893164910,0.33776,78085.0,78067.0,0.012826]
[1769893165110,0.33776,78085.0,78068.0,0.29606037]
[1769893165308,0.33776,78085.0,78068.0,0.30888637]
[1769893165611,0.012821,78101.0,78076.0,0.29606037]
[1769893165814,0.09232,78102.0,78086.0,0.012823]
[1769893166111,0.09232,78102.0,78074.0,0.3378]
[1769893166112,0.09232,78102.0,78091.0,0.012822]
[1769893166915,0.09232,78102.0,78090.0,0.26741484]
[1769893167913,0.28485785,78101.0,78081.0,0.105144]
[1769893168112,0.09232,78102.0,78090.0,0.26741484]
[1769893168320,0.09232,78102.0,78085.0,0.012823]
[1769893169312,0.03332,78102.0,78085.0,0.012823]
[1769893172319,0.03332,78102.0,78087.0,0.012823]
[1769893172516,0.012821,78097.0,78081.0,0.09232]
[1769893172718,0.30535685,78102.0,78081.0,0.09232]
[1769893173119,0.012822,78094.0,78081.0,0.09232]
[1769893173319,0.01282,78108.0,78082.0,0.10259991]
[1769893173517,0.01282,78105.0,78090.0,0.26741484]
[1769893173723,0.01282,78105.0,78082.0,0.10259991]
[1769893174016,0.01282,78105.0,78085.0,0.012823]
[1769893174221,0.01282,78106.0,78082.0,0.10259991]
[1769893174623,0.01282,78106.0,78088.0,0.012823]
[1769893175019,0.01282,78105.0,78082.0,0.10259991]
[1769893175318,0.01282,78108.0,78088.0,0.012823]
[1769893175535,0.01282,78108.0,78090.0,0.012822]
[1769893176428,0.01282,78108.0,78090.0,0.28023684]
[1769893176729,0.33417685,78109.0,78090.0,0.28023684]
[1769893176931,0.01282,78108.0,78090.0,0.012822]
[1769893177834,0.15477203,78108.0,78090.0,0.012822]
[1769893179132,0.1431301,78105.0,78081.0,0.09232]
[1769893179332,0.1559501,78105.0,78085.0,0.012823]
[1769893179533,0.1559501,78105.0,78087.0,0.012823]
[1769893181130,0.14475176,78102.0,78084.0,0.012823]
[1769893181838,0.14475176,78102.0,78087.0,0.012823]
[1769893182337,0.14581529,78099.0,78081.0,0.09232]
[1769893182537,0.14581529,78099.0,78081.0,0.105144]
[1769893183135,0.12805245,78098.0,78086.0,0.012823]
[1769893183336,0.01282,78103.0,78086.0,0.012823]
[1769893183936,0.06214,78109.0,78081.0,0.09232]
[1769893184138,0.01282,78105.0,78081.0,0.09232]
[1769893184332,0.06214,78109.0,78081.0,0.09232]
[1769893184534,0.13129612,78108.0,78085.0,0.012823]
[1769893184732,0.13129612,78107.0,78085.0,0.012823]
[1769893184938,0.012821,78102.0,78081.0,0.09232]
[1769893185245,0.012821,78100.0,78083.0,0.012824]
[1769893185827,0.14392163,78102.0,78085.0,0.012823]
[1769893186031,0.14392163,78102.0,78087.0,0.012823]
[1769893186634,0.01282,78106.0,78087.0,0.012823]
[1769893186832,0.13549497,78105.0,78082.0,0.012824]
[1769893187038,0.105139,78111.0,78094.0,0.012822]
[1769893187344,0.14440544,78106.0,78090.0,0.012822]
[1769893187739,0.012819,78110.0,78092.0,0.012822]
[1769893187936,0.13551351,78109.0,78098.0,0.012821]
[1769893188143,0.09232,78111.0,78098.0,0.012821]
[1769893188336,0.13550994,78110.0,78098.0,0.012821]
[1769893188531,0.13550994,78109.0,78098.0,0.012821]
[1769893188736,0.13550994,78108.0,78098.0,0.012821]
[1769893188931,0.09232,78111.0,78083.0,0.012824]
[1769893189142,0.09232,78111.0,78099.0,0.012821]
[1769893189331,0.09232,78111.0,78087.0,0.012823]
[1769893189332,0.012818,78118.0,78100.0,0.012821]
[1769893189536,0.1353588,78117.0,78100.0,0.012821]
[1769893189732,0.09232,78127.0,78096.0,0.09232]
[1769893189733,0.09232,78127.0,78109.0,0.012819]
[1769893190044,0.13535278,78126.0,78109.0,0.012819]
[1769893190340,0.13535278,78125.0,78106.0,0.01282]
[1769893190543,0.13535278,78124.0,78108.0,0.01282]
[1769893190734,0.09232,78127.0,78110.0,0.012819]
[1769893190934,0.14217774,78126.0,78099.0,0.001]
[1769893191138,0.12936074,78125.0,78109.0,0.012819]
[1769893191436,0.12936074,78124.0,78099.0,0.001]
[1769893191743,0.012817,78123.0,78104.0,0.01282]
[1769893191940,0.012817,78123.0,78096.0,0.09232]
[1769893191941,0.14687431,78116.0,78096.0,0.09232]
[1769893192138,0.12987431,78116.0,78096.0,0.09232]
[1769893192442,0.1288813,78115.0,78099.0,0.001]
[1769893192637,0.012817,78126.0,78108.0,0.01282]
[1769893192842,0.012816,78129.0,78111.0,0.012819]
[1769893193038,0.012817,78127.0,78111.0,0.012819]
[1769893193240,0.012815,78139.0,78105.0,0.01282]
[1769893193539,0.012817,78121.0,78102.0,0.01282]
[1769893193742,0.012816,78130.0,78097.0,0.012821]
[1769893194044,0.09228,78138.0,78096.0,0.09232]
[1769893194238,0.14252598,78136.0,78096.0,0.09232]
[1769893194441,0.105095,78138.0,78096.0,0.09232]
[1769893194442,0.012817,78122.0,78102.0,0.01282]
[1769893194639,0.15591446,78121.0,78104.0,0.01282]
[1769893194942,0.15591446,78121.0,78096.0,0.09232]
[1769893194943,0.22030212,78121.0,78096.0,0.09232]
[1769893195137,0.012818,78116.0,78098.0,0.012821]
[1769893195343,0.012818,78115.0,78097.0,0.012821]
[1769893195847,0.012818,78118.0,78099.0,0.012821]
[1769893196145,0.012818,78116.0,78099.0,0.012821]
[1769893197147,0.012819,78114.0,78096.0,0.105141]
[1769893197343,0.13705133,78113.0,78096.0,0.105141]
[1769893197644,0.13729487,78099.0,78081.0,0.012824]
[1769893197942,0.13729487,78093.0,78077.0,0.09228]
[1769893198143,0.012825,78078.0,78058.0,0.012828]
[1769893198440,0.13742116,78075.0,78057.0,0.09228]
[1769893198642,0.13742116,78058.0,78029.0,0.09228]
[1769893198945,0.13742116,78055.0,78029.0,0.09228]
[1769893199140,0.13742116,78044.0,78029.0,0.09228]
[1769893199347,0.13742116,78036.0,78013.0,0.09228]
[1769893199535,0.12813366,78054.0,78013.0,0.09228]
[1769893199536,0.01283,78047.0,78013.0,0.09228]
[1769893199740,0.13742116,78048.0,78014.0,0.012835]
[1769893200045,0.13742116,78046.0,78014.0,0.012835]
[1769893200241,0.15025316,78033.0,78013.0,0.09228]
[1769893200441,0.13751251,78032.0,78012.0,0.012835]
[1769893200743,0.00011219,78032.0,78012.0,0.012835]
[1769893200942,0.00011219,78032.0,78015.0,0.012835]
[1769893201341,0.00011219,78032.0,78011.0,0.012835]
[1769893202349,0.00011219,78032.0,78010.0,0.09232]
[1769893202546,0.00011219,78032.0,78011.0,0.001]
[1769893202849,0.00011219,78032.0,78012.0,0.012835]
[1769893203446,0.00011219,78032.0,78011.0,0.001]
[1769893204054,0.00011219,78032.0,78010.0,0.09232]
[1769893205050,0.00011219,78032.0,78012.0,0.012835]
[1769893206650,0.00011219,78032.0,78015.0,0.012835]
[1769893207149,0.13694514,78038.0,78010.0,0.09232]
[1769893207354,0.012832,78036.0,78011.0,0.012835]
[1769893207554,0.13694514,78038.0,78014.0,0.012835]
[1769893207854,0.13694514,78038.0,78018.0,0.012834]
[1769893208551,0.08126419,78039.0,78018.0,0.012834]
[1769893208759,0.01283,78043.0,78018.0,0.012834]
[1769893208955,0.14986848,78043.0,78018.0,0.012834]
[1769893209154,0.26519678,78042.0,78018.0,0.012834]
[1769893209851,0.26519678,78042.0,78010.0,0.09232]
[1769893209852,0.26519678,78042.0,78021.0,0.012834]
[1769893210049,0.13697335,78049.0,78031.0,0.012832]
[1769893210452,0.14098383,78059.0,78033.0,0.012832]
[1769893210761,0.012828,78059.0,78038.0,0.012831]
[1769893212159,0.13683729,78058.0,78038.0,0.012831]
[1769893213057,0.13711024,78066.0,78025.0,0.09236]
[1769893213255,0.012825,78076.0,78026.0,0.43024]
[1769893213559,0.14988873,78079.0,78056.0,0.012828]
[1769893213757,0.13706473,78079.0,78059.0,0.012828]
[1769893213959,0.13706473,78079.0,78062.0,0.012827]
[1769893214159,0.13706473,78089.0,78068.0,0.012826]
[1769893214365,0.10206472,78097.0,78074.0,0.012825]
[1769893215259,0.12809427,78096.0,78074.0,0.012825]
[1769893215656,0.012821,78098.0,78074.0,0.012825]
[1769893215852,0.012822,78095.0,78068.0,0.012826]
[1769893216053,0.012822,78095.0,78048.0,0.012829]
[1769893216054,0.09236,78105.0,78080.0,0.012824]
[1769893216254,0.012815,78138.0,78068.0,0.01330443]
[1769893216464,0.13871362,78121.0,78096.0,0.012821]
[1769893216769,0.13871362,78121.0,78095.0,0.012822]
[1769893216966,0.12589562,78121.0,78089.0,0.09236]
[1769893217159,0.12589562,78119.0,78095.0,0.012822]
[1769893217564,0.12587782,78108.0,78089.0,0.09236]
[1769893217867,0.12587782,78106.0,78089.0,0.09236]
[1769893218263,0.12587782,78106.0,78089.0,0.105183]
[1769893218766,0.1256234,78114.0,78089.0,0.09236]
[1769893219163,0.1256234,78114.0,78091.0,0.012822]
[1769893219561,0.1256234,78114.0,78094.0,0.012822]
[1769893220261,0.1256234,78114.0,78090.0,0.012822]
[1769893220465,0.12542903,78112.0,78089.0,0.013823]
[1769893220659,0.12542903,78110.0,78089.0,0.012823]
[1769893221465,0.12542903,78110.0,78092.0,0.012822]
[1769893221667,0.11242903,78110.0,78088.0,0.012823]
[1769893221860,0.11242903,78110.0,78078.0,0.012824]
[1769893222066,0.11242903,78110.0,78092.0,0.012822]
[1769893222273,0.11242903,78110.0,78095.0,0.012822]
[1769893222473,0.11242903,78110.0,78100.0,0.012821]
[1769893222968,0.11242903,78110.0,78083.0,0.012824]
[1769893222969,0.09236,78126.0,78083.0,0.012824]
[1769893223276,0.012811,78158.0,78097.0,0.012821]
[1769893223466,0.012813,78148.0,78098.0,0.43008]
[1769893223666,0.12803277,78140.0,78098.0,0.43008]
[1769893223871,0.1209053,78139.0,78116.0,0.012818]
[1769893224074,0.1209053,78139.0,78122.0,0.012817]
[1769893224573,0.1209053,78139.0,78118.0,0.012818]
[1769893224768,0.1209053,78139.0,78114.0,0.012819]
[1769893224971,0.12047226,78137.0,78096.0,0.09232]
[1769893225169,0.12047226,78137.0,78112.0,0.012819]
[1769893225671,0.12044004,78125.0,78073.0,0.09232]
[1769893225865,0.12044004,78114.0,78073.0,0.09232]
[1769893226074,0.12044004,78114.0,78088.0,0.012823]
[1769893226272,0.12044004,78106.0,78087.0,0.09232]
[1769893226472,0.12044004,78106.0,78081.0,0.012824]
[1769893226767,0.12131499,78104.0,78080.0,0.09232]
[1769893226966,0.12131499,78102.0,78080.0,0.09232]
[1769893227168,0.12131499,78102.0,78088.0,0.001]
[1769893227570,0.12129629,78100.0,78073.0,0.012825]
[1769893227768,0.12129629,78087.0,78061.0,0.09232]
[1769893227977,0.12129629,78087.0,78062.0,0.012827]
[1769893228177,0.12129629,78104.0,78075.0,0.012825]
[1769893228572,0.12129629,78104.0,78078.0,0.012824]
[1769893228977,0.1280631,78103.0,78082.0,0.012824]
[1769893229273,0.12053714,78102.0,78081.0,0.012824]
[1769893229476,0.09232,78110.0,78069.0,0.09232]
[1769893229477,0.21282017,78110.0,78070.0,0.076957]
[1769893229775,0.09232,78110.0,78101.0,0.012821]
[1769893229973,0.012812,78156.0,78091.0,0.33768]
[1769893229974,0.12050017,78130.0,78091.0,0.33768]
[1769893230274,0.12050017,78126.0,78104.0,0.01282]
[1769893230980,0.012818,78117.0,78091.0,0.012822]
[1769893231171,0.012818,78117.0,78088.0,0.09232]
[1769893231172,0.12047633,78114.0,78088.0,0.09232]
[1769893231371,0.12037692,78108.0,78080.0,0.012824]
[1769893231574,0.12037692,78106.0,78080.0,0.012824]
[1769893231768,0.08960358,78104.0,78079.0,0.012824]
[1769893231974,0.08960358,78104.0,78078.0,0.012824]
[1769893232277,0.08960358,78104.0,78090.0,0.012822]
[1769893232480,0.08932454,78115.0,78077.0,0.012825]
[1769893232678,0.08932454,78125.0,78105.0,0.01282]
[1769893232980,0.08932454,78125.0,78112.0,0.012819]
[1769893233781,0.08932454,78125.0,78108.0,0.012819]
[1769893233984,0.07132454,78125.0,78098.0,0.012821]
[1769893234183,0.07132454,78125.0,78112.0,0.012819]
[1769893234578,0.012812,78153.0,78125.0,0.012817]
[1769893234883,0.12801392,78141.0,78122.0,0.012817]
[1769893235076,0.12801392,78141.0,78119.0,0.012818]
[1769893235276,0.012814,78145.0,78119.0,0.012818]
[1769893235473,0.12797706,78140.0,78119.0,0.012818]
[1769893235873,0.08305436,78142.0,78119.0,0.012818]
[1769893236186,0.08305436,78138.0,78119.0,0.012818]
[1769893236578,0.09586936,78138.0,78114.0,0.012818]
[1769893236782,0.08305436,78138.0,78117.0,0.012818]
[1769893237081,0.08359703,78133.0,78110.0,0.012819]
[1769893237579,0.08359703,78133.0,78116.0,0.012818]
[1769893237784,0.08359703,78133.0,78109.0,0.012819]
[1769893238085,0.09228,78142.0,78104.0,0.09232]
[1769893238086,0.012814,78140.0,78117.0,0.012818]
[1769893238283,0.09696139,78138.0,78117.0,0.012818]
[1769893238579,0.0849329,78134.0,78112.0,0.012819]
[1769893238785,0.0849329,78130.0,78104.0,0.10514]
[1769893239484,0.08501434,78124.0,78101.0,0.012821]
[1769893239684,0.08501434,78122.0,78104.0,0.01282]
[1769893240282,0.08501434,78122.0,78107.0,0.01282]
[1769893240586,0.08501434,78122.0,78109.0,0.012819]
[1769893240782,0.08501434,78122.0,78090.0,0.012822]
[1769893240783,0.08501434,78122.0,78107.0,0.01282]
[1769893240975,0.02101434,78122.0,78109.0,0.012819]
[1769893241786,0.02101434,78122.0,78106.0,0.01282]
[1769893241981,0.02101434,78122.0,78100.0,0.012821]
[1769893242182,0.03383134,78122.0,78102.0,0.01282]
[1769893242381,0.02101434,78122.0,78094.0,0.012822]
[1769893242576,0.02101434,78122.0,78107.0,0.01282]
[1769893242777,0.105096,78128.0,78108.0,0.012819]
[1769893242978,0.07652711,78126.0,78105.0,0.01282]
[1769893243282,0.06371011,78124.0,78105.0,0.01282]
[1769893243482,0.06371011,78124.0,78101.0,0.09228]
[1769893243785,0.06371011,78124.0,78107.0,0.001]
[1769893244188,0.06371011,78122.0,78107.0,0.001]
[1769893244578,0.06371011,78122.0,78107.0,0.01382]
[1769893244784,0.09228,78128.0,78111.0,0.012819]
[1769893245084,0.06370503,78126.0,78111.0,0.012819]
[1769893245780,0.06370503,78123.0,78101.0,0.09228]
[1769893245986,0.06370503,78123.0,78111.0,0.001]
[1769893246690,0.06370503,78123.0,78105.0,0.01282]
[1769893246886,0.06370503,78123.0,78108.0,0.01282]
[1769893247085,0.06370503,78123.0,78105.0,0.01282]
[1769893247286,0.06370503,78123.0,78111.0,0.012819]
[1769893247688,0.06370503,78123.0,78108.0,0.012819]
[1769893248189,0.05570503,78123.0,78108.0,0.012819]
[1769893248384,0.05570503,78123.0,78111.0,0.012819]
[1769893248591,0.012815,78134.0,78105.0,0.01282]
[1769893248791,0.14185909,78133.0,78105.0,0.01282]
[1769893248991,0.14185909,78132.0,78105.0,0.01282]
[1769893249194,0.14185909,78131.0,78108.0,0.001]
[1769893249393,0.14185909,78130.0,78108.0,0.001]
[1769893249590,0.14185909,78129.0,78108.0,0.001]
[1769893249788,0.14185909,78128.0,78105.0,0.01282]
[1769893249988,0.14185909,78127.0,78113.0,0.012819]
[1769893250189,0.06104676,78136.0,78114.0,0.012818]
[1769893250388,0.07386176,78134.0,78116.0,0.012818]
[1769893250587,0.14185894,78133.0,78116.0,0.012818]
[1769893250790,0.06105604,78131.0,78101.0,0.09228]
[1769893250985,0.06105604,78131.0,78113.0,0.012819]
[1769893251390,0.06105604,78131.0,78115.0,0.012818]
[1769893251893,0.06105604,78131.0,78114.0,0.012818]
[1769893252088,0.06105604,78131.0,78108.0,0.012819]
[1769893252290,0.06105604,78126.0,78101.0,0.09228]
[1769893252793,0.06105971,78124.0,78104.0,0.01282]
[1769893252985,0.06105971,78124.0,78114.0,0.001]
[1769893253393,0.06105971,78124.0,78101.0,0.09228]
[1769893253989,0.06105971,78124.0,78112.0,0.012819]
[1769893254190,0.06105971,78124.0,78111.0,0.012819]
[1769893254387,0.06106053,78131.0,78101.0,0.09228]
[1769893254696,0.13697434,78130.0,78115.0,0.012818]
[1769893254892,0.06106053,78131.0,78115.0,0.012818]
[1769893255094,0.19803123,78130.0,78115.0,0.012818]
[1769893255294,0.03106053,78130.0,78115.0,0.012818]
[1769893255494,0.12800409,78134.0,78119.0,0.012818]
[1769893255694,0.13697427,78133.0,78113.0,0.012819]
[1769893255894,0.14979027,78132.0,78112.0,0.012819]
[1769893256092,0.012817,78127.0,78115.0,0.001]
[1769893256393,0.105094,78142.0,78115.0,0.001]
[1769893256394,0.13697427,78126.0,78115.0,0.001]
[1769893256588,0.14677071,78125.0,78115.0,0.001]
[1769893256790,0.14677071,78124.0,78115.0,0.001]
[1769893256989,0.012816,78130.0,78115.0,0.001]
[1769893257195,0.14676818,78129.0,78115.0,0.001]
[1769893257495,0.05095146,78124.0,78101.0,0.09228]
[1769893257795,0.05095146,78112.0,78096.0,0.012821]
[1769893257990,0.05095146,78112.0,78097.0,0.012821]
[1769893258197,0.14695696,78111.0,78099.0,0.012821]
[1769893258388,0.0508568,78117.0,78099.0,0.012821]
[1769893258591,0.197116,78116.0,78099.0,0.012821]
[1769893258786,0.1462592,78115.0,78099.0,0.012821]
[1769893258992,0.1462592,78114.0,78099.0,0.012821]
[1769893259192,0.0508568,78112.0,78096.0,0.012821]
[1769893259396,0.1462592,78111.0,78096.0,0.012821]
[1769893259690,0.1462592,78110.0,78096.0,0.012821]
[1769893259892,0.1462592,78109.0,78096.0,0.012821]
[1769893260092,0.0508568,78112.0,78096.0,0.012821]
[1769893260296,0.0508568,78106.0,78077.0,0.09228]
[1769893260597,0.05098491,78115.0,78096.0,0.012821]
[1769893260897,0.1448903,78114.0,78096.0,0.012821]
[1769893261097,0.05098491,78112.0,78096.0,0.012821]
[1769893261297,0.1448903,78111.0,78096.0,0.012821]
[1769893261500,0.1448903,78111.0,78093.0,0.012822]
[1769893261701,0.05098491,78110.0,78090.0,0.012822]
[1769893261900,0.05098491,78108.0,78090.0,0.012822]
[1769893262105,0.05098491,78106.0,78090.0,0.012822]
[1769893262310,0.1448903,78105.0,78092.0,0.012822]
[1769893262609,0.05104678,78105.0,78089.0,0.09228]
[1769893262808,0.02028678,78103.0,78082.0,0.012824]
[1769893263503,0.03310578,78112.0,78080.0,0.09228]
[1769893263700,0.02028678,78112.0,78085.0,0.012823]
[1769893263904,0.12805327,78117.0,78091.0,0.012822]
[1769893264109,0.09228,78127.0,78113.0,0.012819]
[1769893264804,0.09228,78127.0,78103.0,0.09228]
[1769893265203,0.09228,78127.0,78061.0,0.32043385]
[1769893265204,0.012817,78123.0,78097.0,0.09228]
[1769893265403,0.09228,78127.0,78097.0,0.09228]
[1769893265601,0.09228,78127.0,78100.0,0.012821]
[1769893265809,0.09228,78127.0,78100.0,0.26687898]
[1769893266010,0.10584572,78127.0,78110.0,0.012819]
[1769893266214,0.01356572,78126.0,78100.0,0.26687898]
[1769893266807,0.01356572,78126.0,78107.0,0.01282]
[1769893267007,0.00946386,78122.0,78090.0,0.26687898]
[1769893267197,0.00946386,78120.0,78098.0,0.012821]
[1769893267399,0.09228,78124.0,78105.0,0.01282]
[1769893267598,0.00946386,78130.0,78110.0,0.26687898]
[1769893268105,0.00946386,78130.0,78100.0,0.26687898]
[1769893268106,0.00946386,78122.0,78100.0,0.26687898]
[1769893268402,0.00946386,78122.0,78104.0,0.01282]
[1769893269811,0.06674385,78133.0,78104.0,0.01282]
[1769893270012,0.06674385,78133.0,78112.0,0.012819]
[1769893270209,0.12801966,78132.0,78112.0,0.012819]
[1769893270406,0.06674385,78133.0,78112.0,0.012819]
[1769893270606,0.012815,78138.0,78116.0,0.012818]
[1769893271008,0.12801065,78135.0,78120.0,0.26687898]
[1769893271218,0.012814,78142.0,78120.0,0.26687898]
[1769893271513,0.12799672,78141.0,78120.0,0.26687898]
[1769893271903,0.09228,78150.0,78127.0,0.012816]
[1769893272802,0.00946386,78162.0,78130.0,0.012816]
[1769893273006,0.00946386,78157.0,78130.0,0.26687898]
[1769893273206,0.00946386,78145.0,78096.0,0.00967068]
[1769893273402,0.00946386,78139.0,78115.0,0.012818]
[1769893273616,0.09228,78138.0,78110.0,0.26687898]
[1769893273810,0.09228,78138.0,78114.0,0.012818]
[1769893274517,0.1452178,78137.0,78114.0,0.012818]
[1769893274709,0.1452178,78137.0,78110.0,0.26687898]
[1769893274710,0.012815,78134.0,78110.0,0.26687898]
[1769893275012,0.13575394,78133.0,78119.0,0.012818]
[1769893275210,0.00946386,78142.0,78119.0,0.012818]
[1769893275413,0.12800491,78139.0,78119.0,0.012818]
[1769893275613,0.13574414,78138.0,78119.0,0.012818]
[1769893275816,0.13574414,78137.0,78119.0,0.012818]
[1769893276010,0.13574414,78136.0,78119.0,0.012818]
[1769893276207,0.33756,78141.0,78119.0,0.012818]
[1769893276413,0.13444657,78140.0,78119.0,0.012818]
[1769893276612,0.262438,78139.0,78119.0,0.012818]
[1769893276806,0.33756,78141.0,78116.0,0.00967068]
[1769893277020,0.00946386,78160.0,78135.0,0.012815]
[1769893277313,0.13441797,78159.0,78138.0,0.012815]
[1769893277509,0.00946386,78160.0,78140.0,0.012814]
[1769893277510,0.22669797,78158.0,78140.0,0.012814]
[1769893277711,0.09228,78158.0,78143.0,0.012814]
[1769893277911,0.09228,78158.0,78139.0,0.012814]
[1769893278709,0.09228,78158.0,78135.0,0.012815]
[1769893278710,0.10174386,78158.0,78135.0,0.012815]
[1769893278916,0.00946386,78157.0,78134.0,0.012815]
[1769893279312,0.00946386,78155.0,78134.0,0.012815]
[1769893279717,0.09228,78156.0,78137.0,0.012815]
[1769893280019,0.00946386,78190.0,78156.0,0.00967068]
[1769893280219,0.012807,78184.0,78160.0,0.26687898]
[1769893280416,0.00946386,78182.0,78160.0,0.26687898]
[1769893280615,0.13359237,78181.0,78160.0,0.27968998]
[1769893280817,0.00946386,78182.0,78160.0,0.26687898]